bitfinex-derivatives/quotes_BTCF0:USTF0_20250602
["timestamp","ask_amount","ask_price","bid_price","bid_amount"]
[1748896489528,0.3944846,104780.0,104770.0,1.47488001]
[1748896490424,0.3944846,104780.0,104770.0,1.28407731]
[1748896490727,0.4246846,104780.0,104770.0,1.47488001]
[1748896493329,0.4246846,104780.0,104770.0,1.47495409]
[1748896494125,0.4246846,104780.0,104770.0,1.28415139]
[1748896494428,0.4246846,104780.0,104770.0,1.47495379]
[1748896494623,0.4246846,104780.0,104770.0,0.84467139]
[1748896494831,0.4246846,104780.0,104770.0,1.28415139]
[1748896495318,0.4246846,104780.0,104770.0,1.32832549]
[1748896495624,0.4246846,104780.0,104770.0,1.35616764]
[1748896496416,0.4246846,104780.0,104770.0,1.37100134]
[1748896496618,0.4246846,104780.0,104770.0,1.44328692]
[1748896497223,0.4246846,104780.0,104770.0,1.37100192]
[1748896497418,0.4246846,104780.0,104770.0,1.42993554]
[1748896497725,0.4246846,104780.0,104770.0,1.47444599]
[1748896497925,0.4246846,104780.0,104770.0,1.43027189]
[1748896498225,0.50053361,104780.0,104770.0,1.43027189]
[1748896500529,0.50053361,104780.0,104770.0,1.22027189]
[1748896501027,0.50053361,104780.0,104770.0,1.21999196]
[1748896503324,0.70590018,104780.0,104770.0,1.60535853]
[1748896503627,0.70590018,104780.0,104770.0,1.64973691]
[1748896503828,0.70590018,104780.0,104770.0,1.60539225]
[1748896504028,0.70590018,104780.0,104770.0,1.79619465]
[1748896504229,0.50053361,104780.0,104770.0,1.60539225]
[1748896504421,0.70590018,104780.0,104770.0,1.60539225]
[1748896504823,0.70590018,104780.0,104770.0,1.16591225]
[1748896505031,0.70590018,104780.0,104770.0,1.60535225]
[1748896507333,0.70590018,104780.0,104770.0,1.64940013]
[1748896507524,0.70590018,104780.0,104770.0,1.44403356]
[1748896507727,0.70590018,104780.0,104770.0,1.3407509]
[1748896507935,0.70590018,104780.0,104770.0,1.54611747]
[1748896508525,0.70590018,104780.0,104770.0,1.36611747]
[1748896509236,0.73860018,104780.0,104770.0,1.36611747]
[1748896509927,0.73860018,104780.0,104770.0,1.19042601]
[1748896510326,0.73860018,104780.0,104770.0,1.11802032]
[1748896511134,0.73860018,104780.0,104770.0,1.19042662]
[1748896511337,0.73860018,104780.0,104770.0,1.23447179]
[1748896511726,0.73860018,104780.0,104770.0,1.19011265]
[1748896512233,0.73860018,104780.0,104770.0,0.98770635]
[1748896513026,0.73860018,104780.0,104770.0,0.62690635]
[1748896513230,0.73860018,104780.0,104770.0,0.98770635]
[1748896515139,0.73860018,104780.0,104770.0,0.89753984]
[1748896515341,0.94396675,104780.0,104770.0,0.51786547]
[1748896515641,0.94396675,104780.0,104770.0,0.92576547]
[1748896516746,0.73860018,104780.0,104770.0,0.92576547]
[1748896517244,0.73860018,104780.0,104770.0,1.16373204]
[1748896519137,0.73860018,104780.0,104770.0,1.20656209]
[1748896519738,0.73860018,104780.0,104770.0,1.00119552]
[1748896520240,0.73860018,104780.0,104770.0,1.07370448]
[1748896521552,0.73860018,104780.0,104770.0,1.00119552]
[1748896523255,0.73860018,104780.0,104770.0,0.91086937]
[1748896523256,0.94396675,104780.0,104770.0,0.91086937]
[1748896523545,0.94396675,104780.0,104770.0,1.00115335]
[1748896523750,0.94396675,104780.0,104770.0,0.96855335]
[1748896526648,0.73860018,104780.0,104770.0,0.96855335]
[1748896527051,0.73860018,104780.0,104770.0,0.9982229]
[1748896527453,0.76860018,104780.0,104770.0,0.99884434]
[1748896528551,0.97396675,104780.0,104770.0,0.99884434]
[1748896531254,0.97396675,104780.0,104770.0,0.99876844]
[1748896531949,0.76860018,104780.0,104770.0,0.99876844]
[1748896532157,0.76860018,104780.0,104770.0,0.99872844]
[1748896533158,0.97396675,104780.0,104770.0,0.99872844]
[1748896535056,0.97396675,104780.0,104770.0,1.03132844]
[1748896535256,0.97396675,104780.0,104770.0,1.03132168]
[1748896536957,0.97396675,104780.0,104770.0,0.9588426]
[1748896537350,0.97396675,104780.0,104770.0,1.23668825]
[1748896537351,0.56323361,104780.0,104770.0,1.23668825]
[1748896537552,0.56323361,104780.0,104770.0,1.44768825]
[1748896537553,0.73860018,104780.0,104770.0,1.44768825]
[1748896537950,0.73860018,104780.0,104770.0,1.63849035]
[1748896538161,0.30013361,104780.0,104770.0,1.82849035]
[1748896538562,0.2242846,104780.0,104770.0,1.88742397]
[1748896538751,0.42985117,104780.0,104770.0,1.69662187]
[1748896538949,0.42965117,104780.0,104770.0,1.65220388]
[1748896539259,0.42985117,104780.0,104770.0,1.65220388]
[1748896539457,0.42985117,104780.0,104770.0,1.69660845]
[1748896539957,0.1929846,104780.0,104770.0,2.02029804]
[1748896540162,0.1927846,104780.0,104770.0,1.81330219]
[1748896540461,0.1929846,104780.0,104770.0,1.90160262]
[1748896541158,0.1929846,104780.0,104770.0,1.94796427]
[1748896541363,0.1929846,104780.0,104770.0,2.02037852]
[1748896541657,0.1929846,104780.0,104770.0,1.93197809]
[1748896542059,0.1929846,104780.0,104770.0,1.88922141]
[1748896542360,0.1929846,104780.0,104770.0,1.84281664]
[1748896543060,0.1929846,104780.0,104770.0,1.84280892]
[1748896543364,0.1929846,104780.0,104770.0,1.84276466]
[1748896543561,0.1929846,104780.0,104770.0,1.63744235]
[1748896546960,0.1929846,104780.0,104770.0,1.65210491]
[1748896548666,0.1929846,104780.0,104770.0,1.60775062]
[1748896548858,0.1929846,104780.0,104770.0,1.69615105]
[1748896549062,0.1929846,104780.0,104770.0,1.69614317]
[1748896549264,0.1929846,104780.0,104770.0,1.69613582]
[1748896549654,0.1929846,104780.0,104770.0,1.60773539]
[1748896551162,0.1929846,104780.0,104770.0,1.60772863]
[1748896551464,0.1929846,104780.0,104770.0,1.96852863]
[1748896551763,0.1929846,104780.0,104770.0,1.99817195]
[1748896552864,0.1929846,104780.0,104770.0,1.99805195]
[1748896553054,0.1929846,104780.0,104770.0,2.10089195]
[1748896555066,0.1929846,104780.0,104770.0,2.10089257]
[1748896556666,0.2257846,104780.0,104770.0,2.10089257]
[1748896557165,0.2585846,104780.0,104770.0,2.10089257]
[1748896557561,0.2585846,104780.0,104770.0,1.55885257]
[1748896557774,0.2585846,104780.0,104770.0,2.10081257]
[1748896558767,0.2890846,104780.0,104770.0,2.10081257]
[1748896559070,0.2890846,104780.0,104770.0,2.10081915]
[1748896560267,0.2890846,104780.0,104770.0,2.10077915]
[1748896560656,0.2890846,104780.0,104770.0,2.14513373]
[1748896560964,0.2890846,104780.0,104770.0,2.11550608]
[1748896563171,0.49444187,104780.0,104770.0,2.32086335]
[1748896565166,0.49444187,104780.0,104770.0,2.27453352]
[1748896565367,0.49444187,104780.0,104770.0,2.13010886]
[1748896565670,0.49444187,104780.0,104770.0,2.32092219]
[1748896566064,0.49444187,104780.0,104770.0,2.13012009]
[1748896566765,0.49444187,104780.0,104770.0,2.11542102]
[1748896567967,0.49444187,104780.0,104770.0,1.67626102]
[1748896568167,0.69979914,104780.0,104770.0,1.34893243]
[1748896568463,0.70979914,104780.0,104770.0,1.89081243]
[1748896568662,0.50444187,104780.0,104770.0,1.89081243]
[1748896569753,0.70979914,104780.0,104770.0,1.4517086]
[1748896569965,0.70979914,104780.0,104770.0,0.5961486]
[1748896570164,0.70979914,104780.0,104770.0,0.36721498]
[1748896570466,1.07059914,104780.0,104770.0,0.36716109]
[1748896570675,1.38595641,104780.0,104770.0,0.09473214]
[1748896570868,1.07059914,104780.0,104770.0,0.05033225]
[1748896571069,1.23059914,104780.0,104770.0,0.05033225]
[1748896571962,0.1908021,104770.0,104760.0,0.84431989]
[1748896572256,0.49145937,104770.0,104760.0,1.20431989]
[1748896573168,0.49245937,104770.0,104760.0,1.21231989]
[1748896573769,0.49345937,104770.0,104760.0,1.21628722]
[1748896574760,0.49345937,104770.0,104760.0,0.77716722]
[1748896574960,0.49345937,104770.0,104760.0,1.21628722]
[1748896575275,0.50345937,104770.0,104760.0,1.21628722]
[1748896576467,0.51293992,104770.0,104760.0,1.21628722]
[1748896576662,0.51293992,104770.0,104760.0,1.17192]
[1748896577772,0.50293992,104770.0,104760.0,1.17192]
[1748896578580,0.50293992,104770.0,104760.0,0.7328]
[1748896578875,0.50293992,104770.0,104760.0,1.17192]
[1748896580173,0.51293992,104770.0,104760.0,1.17192]
[1748896580873,0.51293992,104770.0,104760.0,0.86192]
[1748896581071,0.71829719,104770.0,104760.0,0.062]
[1748896581270,0.78829719,104770.0,104760.0,0.012]
[1748896581576,0.58293992,104770.0,104760.0,0.012]
[1748896581787,0.78829719,104770.0,104760.0,0.012]
[1748896582078,0.78829719,104770.0,104760.0,0.042]
[1748896582473,0.58293992,104770.0,104760.0,0.042]
[1748896584078,0.78829719,104770.0,104760.0,0.05762295]
[1748896584583,0.58293992,104770.0,104760.0,0.05762295]
[1748896585985,0.58293992,104770.0,104760.0,0.08762168]
[1748896587176,0.58293992,104770.0,104760.0,0.05762168]
[1748896589371,0.37758265,104770.0,104760.0,0.05762168]
[1748896589677,0.58293992,104770.0,104760.0,0.05762168]
[1748896590084,0.58293992,104770.0,104760.0,0.05762153]
[1748896593690,0.58293992,104770.0,104760.0,0.08852153]
[1748896593879,0.58293992,104770.0,104760.0,0.0429]
[1748896594072,0.58293992,104770.0,104760.0,0.08853517]
[1748896594693,0.57345937,104770.0,104760.0,0.79469244]
[1748896594872,0.2028021,104770.0,104760.0,1.43657001]
[1748896595184,0.1928021,104770.0,104760.0,1.55334956]
[1748896595379,0.1930021,104770.0,104760.0,1.61228318]
[1748896595580,0.1928021,104770.0,104760.0,1.65500621]
[1748896595775,0.1930021,104770.0,104760.0,1.65500621]
[1748896596083,0.1930021,104770.0,104760.0,1.44964894]
[1748896596587,0.1930021,104770.0,104760.0,1.37721999]
[1748896597179,0.1930021,104770.0,104760.0,1.37722602]
[1748896597374,0.1930021,104770.0,104760.0,1.31830528]
[1748896598088,0.1930021,104770.0,104760.0,1.31832496]
[1748896598488,0.1930021,104770.0,104760.0,1.37746003]
[1748896598893,0.1930021,104770.0,104760.0,1.37584309]
[1748896599085,0.1928021,104770.0,104760.0,1.33310365]
[1748896599287,0.1930021,104770.0,104760.0,1.42150408]
[1748896599689,0.1930021,104770.0,104760.0,1.21614078]
[1748896599890,0.1930021,104770.0,104760.0,1.42150408]
[1748896600285,0.1930021,104770.0,104760.0,1.36235628]
[1748896600988,0.1930021,104770.0,104760.0,1.42149301]
[1748896602391,0.1930021,104770.0,104760.0,1.42146266]
[1748896603893,0.1930021,104770.0,104760.0,1.75189563]
[1748896604095,0.1928021,104770.0,104760.0,1.6927589]
[1748896604394,0.0022,104770.0,104760.0,1.6927589]
[1748896604785,0.1930022,104770.0,104760.0,1.6927589]
[1748896605191,0.1930022,104770.0,104760.0,1.66311319]
[1748896606289,0.1930022,104770.0,104760.0,1.61748968]
[1748896606491,0.14323993,104780.0,104770.0,0.1908022]
[1748896606492,0.00014303,104780.0,104770.0,0.1908022]
[1748896606688,0.19092703,104780.0,104770.0,1.83197002]
[1748896606999,0.19112703,104780.0,104770.0,1.92037045]
[1748896607397,0.19112703,104780.0,104770.0,1.96661941]
[1748896607894,0.19112703,104780.0,104770.0,2.06206341]
[1748896607895,0.00034303,104780.0,104770.0,2.06206341]
[1748896608099,0.00014303,104780.0,104770.0,2.03253873]
[1748896608401,0.00014303,104780.0,104770.0,2.07516773]
[1748896608402,0.00034303,104780.0,104770.0,2.07516773]
[1748896608700,0.00034303,104780.0,104770.0,2.03353873]
[1748896608901,0.00134303,104780.0,104770.0,2.03347477]
[1748896609104,0.00134303,104780.0,104770.0,2.07608749]
[1748896609602,0.00134303,104780.0,104770.0,1.96125866]
[1748896610401,0.00134303,104780.0,104770.0,2.03341927]
[1748896611804,0.00134303,104780.0,104770.0,2.09235327]
[1748896612205,0.00134303,104780.0,104770.0,1.73155327]
[1748896612400,0.19212703,104780.0,104770.0,2.24778997]
[1748896612605,0.19212703,104780.0,104770.0,2.45315327]
[1748896612901,0.00134303,104780.0,104770.0,2.45315327]
[1748896613103,0.19212703,104780.0,104770.0,2.39421927]
[1748896613503,0.00134303,104780.0,104770.0,2.35770952]
[1748896614004,0.00134303,104780.0,104770.0,2.29877527]
[1748896614208,0.00134303,104780.0,104770.0,2.3577055]
[1748896614806,0.19212703,104780.0,104770.0,2.3577055]
[1748896615506,0.00134303,104780.0,104770.0,2.3577055]
[1748896615710,0.19212693,104780.0,104770.0,2.1523422]
[1748896615904,0.19212693,104780.0,104770.0,2.3577055]
[1748896616600,0.00134303,104780.0,104770.0,2.3577055]
[1748896617001,0.00134303,104780.0,104770.0,2.28554489]
[1748896617511,0.00134303,104780.0,104770.0,2.32814177]
[1748896618009,0.00134303,104780.0,104770.0,2.32812353]
[1748896619107,0.19212703,104780.0,104770.0,2.32812353]
[1748896620708,0.19212703,104780.0,104770.0,2.2691933]
[1748896621012,0.19212703,104780.0,104770.0,2.26923764]
[1748896621310,0.00134303,104780.0,104770.0,2.26923764]
[1748896624427,0.00134303,104780.0,104770.0,2.26929106]
[1748896625321,0.00134303,104780.0,104770.0,2.26924645]
[1748896625821,0.00134303,104780.0,104770.0,2.38616471]
[1748896627321,0.19212683,104780.0,104770.0,2.18084602]
[1748896627522,0.06614303,104780.0,104770.0,2.26943358]
[1748896627722,0.06614303,104780.0,104770.0,2.06411489]
[1748896627912,0.06614303,104780.0,104770.0,2.26943358]
[1748896628525,0.25692673,104780.0,104770.0,1.52243489]
[1748896628822,0.49739496,104780.0,104770.0,1.54496602]
[1748896629209,0.49739496,104780.0,104770.0,2.26380529]
[1748896629409,0.49739496,104780.0,104770.0,2.20471239]
[1748896629720,0.49314542,104780.0,104770.0,2.17518738]
[1748896630523,0.49314542,104780.0,104770.0,2.26381154]
[1748896630714,0.49314542,104780.0,104770.0,2.17518738]
[1748896630909,0.49314542,104780.0,104770.0,2.12897335]
[1748896631229,0.28782673,104780.0,104770.0,1.92365466]
[1748896631419,0.28782673,104780.0,104770.0,1.86455551]
[1748896632519,0.28782673,104780.0,104770.0,1.79222593]
[1748896635130,0.28782673,104780.0,104770.0,1.86462351]
[1748896636225,0.28782673,104780.0,104770.0,1.79222593]
[1748896638231,0.28782673,104780.0,104770.0,1.07062593]
[1748896638431,0.28782673,104780.0,104770.0,1.79222593]
[1748896639520,0.28782673,104780.0,104770.0,1.92722957]
[1748896640233,0.28782673,104780.0,104770.0,2.13261831]
[1748896641331,0.28782673,104780.0,104770.0,2.17438903]
[1748896642541,0.28782673,104780.0,104770.0,1.96900029]
[1748896642740,0.28782673,104780.0,104770.0,2.17438903]
[1748896644630,0.28782673,104780.0,104770.0,2.17436295]
[1748896646232,0.28782673,104780.0,104770.0,2.21709302]
[1748896646942,0.28782673,104780.0,104770.0,2.21709153]
[1748896648647,0.28782673,104780.0,104770.0,2.17436295]
[1748896648944,0.28782673,104780.0,104770.0,2.24748448]
[1748896649643,0.28782673,104780.0,104770.0,1.80864448]
[1748896649943,0.28782673,104780.0,104770.0,2.18829003]
[1748896650135,0.28782673,104780.0,104770.0,2.18825003]
[1748896650534,0.28782673,104780.0,104770.0,2.24738417]
[1748896651435,0.28782673,104780.0,104770.0,1.70602844]
[1748896651637,0.28782673,104780.0,104770.0,1.64669906]
[1748896651841,0.28782673,104780.0,104770.0,2.15789036]
[1748896652036,0.28782673,104780.0,104770.0,1.33875032]
[1748896652236,0.50321547,104780.0,104770.0,1.86533506]
[1748896652441,0.29782673,104780.0,104770.0,1.86533506]
[1748896652636,0.28782673,104780.0,104770.0,2.0707238]
[1748896652842,0.28782673,104780.0,104770.0,2.10302958]
[1748896653248,0.28782673,104780.0,104770.0,2.10301318]
[1748896655351,0.28782673,104780.0,104770.0,2.13611318]
[1748896656239,0.28782673,104780.0,104770.0,2.13607318]
[1748896656444,0.49319907,104780.0,104770.0,2.1360712]
[1748896656648,0.49319907,104780.0,104770.0,2.18229125]
[1748896656856,0.49319907,104780.0,104770.0,2.13606338]
[1748896658441,0.49319907,104780.0,104770.0,2.20845468]
[1748896660555,0.49319907,104780.0,104770.0,2.00308234]
[1748896660752,0.49319907,104780.0,104770.0,2.20847026]
[1748896663244,0.49319907,104780.0,104770.0,2.13607896]
[1748896664555,0.49299907,104780.0,104770.0,2.13607896]
[1748896668558,0.49299907,104780.0,104770.0,2.04549444]
[1748896668750,0.49299907,104780.0,104770.0,2.13607014]
[1748896669149,0.49299907,104780.0,104770.0,2.20846144]
[1748896670360,0.49299907,104780.0,104770.0,2.25119784]
[1748896670674,0.49299907,104780.0,104770.0,2.17880654]
[1748896672346,0.49299907,104780.0,104770.0,2.13607014]
[1748896672547,0.49299907,104780.0,104770.0,2.09172566]
[1748896672752,0.49299907,104780.0,104770.0,2.13609069]
[1748896674061,0.49299907,104780.0,104770.0,2.16879069]
[1748896674656,0.49299907,104780.0,104770.0,2.22792483]
[1748896674865,0.28762673,104780.0,104770.0,2.22792483]
[1748896675070,0.49299907,104780.0,104770.0,2.22792483]
[1748896676064,0.49299907,104780.0,104770.0,2.16879069]
[1748896676565,0.49299907,104780.0,104770.0,2.16881383]
[1748896678354,0.49299907,104780.0,104770.0,1.80801383]
[1748896678558,0.28762673,104780.0,104770.0,1.88041657]
[1748896679465,0.28762673,104780.0,104770.0,1.93955071]
[1748896680258,0.28762673,104780.0,104770.0,1.98232982]
[1748896680464,0.19192673,104780.0,104770.0,1.90996842]
[1748896680666,0.19192673,104780.0,104770.0,2.11534076]
[1748896680858,0.19192673,104780.0,104770.0,2.15970047]
[1748896681060,0.19192683,104780.0,104770.0,2.10056633]
[1748896681262,0.19212683,104780.0,104770.0,2.10056633]
[1748896682770,0.19212683,104780.0,104770.0,2.05430082]
[1748896682974,0.19212683,104780.0,104770.0,2.10054429]
[1748896684271,0.19212683,104780.0,104770.0,1.89517195]
[1748896684479,0.39749917,104780.0,104770.0,1.41300384]
[1748896684770,0.40174871,104780.0,104770.0,1.21912923]
[1748896684967,0.50664871,104780.0,104770.0,1.65700146]
[1748896685271,0.50664871,104780.0,104770.0,1.8623738]
[1748896685673,0.50239917,104780.0,104770.0,1.8623738]
[1748896686766,0.50239917,104780.0,104770.0,1.86229048]
[1748896688260,0.29702683,104780.0,104770.0,1.89559048]
[1748896689071,0.29702683,104780.0,104770.0,1.35439048]
[1748896689264,0.29702683,104780.0,104770.0,1.86589434]
[1748896690169,0.20212683,104780.0,104770.0,1.86589434]
[1748896690370,0.19212683,104780.0,104770.0,1.95465187]
[1748896690760,0.19212683,104780.0,104770.0,2.00079748]
[1748896690971,0.22362683,104780.0,104770.0,2.00079748]
[1748896691273,0.26890343,104780.0,104770.0,1.95463733]
[1748896692467,0.19212683,104780.0,104770.0,2.16000967]
[1748896692666,0.19192683,104780.0,104770.0,2.16000967]
[1748896692868,0.19192683,104780.0,104770.0,1.79920967]
[1748896693075,0.19192683,104780.0,104770.0,2.52080967]
[1748896693374,0.19212683,104780.0,104770.0,2.52080967]
[1748896693579,0.19212683,104780.0,104770.0,2.52080459]
[1748896694666,0.19212683,104780.0,104770.0,2.4780594]
[1748896694869,0.19212683,104780.0,104770.0,2.52079714]
[1748896695475,0.19212683,104780.0,104770.0,2.3154248]
[1748896695977,0.19212683,104780.0,104770.0,2.47928431]
[1748896697682,0.19192683,104780.0,104770.0,2.47928431]
[1748896697871,0.19212683,104780.0,104770.0,2.47928876]
[1748896698570,0.19212683,104780.0,104770.0,2.43314283]
[1748896698765,0.19212683,104780.0,104770.0,2.47928883]
[1748896699386,0.19212683,104780.0,104770.0,2.43314283]
[1748896700181,0.19212683,104780.0,104770.0,2.47928817]
[1748896700379,0.19212683,104780.0,104770.0,2.43654871]
[1748896701284,0.19212683,104780.0,104770.0,2.39040337]
[1748896701876,0.19212683,104780.0,104770.0,2.43314282]
[1748896702180,0.19212683,104780.0,104770.0,2.02239814]
[1748896702370,0.19212683,104780.0,104770.0,2.43314282]
[1748896702682,0.19212683,104780.0,104770.0,1.99450282]
[1748896702867,0.19212683,104780.0,104770.0,2.22769048]
[1748896703779,0.19212683,104780.0,104770.0,2.18495103]
[1748896704281,0.19212683,104780.0,104770.0,1.6576335]
[1748896704479,0.19212683,104780.0,104770.0,2.0961935]
[1748896705179,0.22482683,104780.0,104770.0,2.0961935]
[1748896705771,0.22482683,104780.0,104770.0,1.5551135]
[1748896705972,0.25732683,104780.0,104770.0,2.0961535]
[1748896706376,0.46269917,104780.0,104770.0,1.5218135]
[1748896706572,0.49579917,104780.0,104770.0,1.06023906]
[1748896706877,0.50579917,104780.0,104770.0,1.0426]
[1748896707083,0.75117151,104780.0,104770.0,1.58364]
[1748896707283,0.54585826,104780.0,104770.0,1.58364]
[1748896708980,0.6232713,104780.0,104770.0,1.58364]
[1748896710985,0.41783987,104780.0,104770.0,1.58364]
[1748896711173,0.6232713,104780.0,104770.0,1.0426]
[1748896711379,0.6232713,104780.0,104770.0,1.12032]
[1748896712892,0.6232713,104780.0,104770.0,1.16693076]
[1748896713094,0.41783987,104780.0,104770.0,0.72841076]
[1748896713389,0.41783987,104780.0,104770.0,1.16693076]
[1748896713584,0.41783987,104780.0,104770.0,1.12032]
[1748896713979,0.41783987,104780.0,104770.0,0.84692523]
[1748896714190,0.41783987,104780.0,104770.0,0.91692523]
[1748896715794,0.37783987,104780.0,104770.0,0.91692523]
[1748896717799,0.37783987,104780.0,104770.0,0.91690625]
[1748896721795,0.37783987,104780.0,104770.0,0.91689951]
[1748896724002,0.37783987,104780.0,104770.0,0.47837951]
[1748896724201,0.37783987,104780.0,104770.0,1.10770151]
[1748896724394,0.37783987,104780.0,104770.0,0.91689951]
[1748896727306,0.58322884,104780.0,104770.0,1.12228848]
[1748896727699,0.30042683,104780.0,104770.0,1.31309048]
[1748896728004,0.19212683,104780.0,104770.0,1.49544415]
[1748896728297,0.19212683,104780.0,104770.0,2.12717057]
[1748896728499,0.19212683,104780.0,104770.0,2.08282793]
[1748896728703,0.19192683,104780.0,104770.0,2.08282793]
[1748896728902,0.19212683,104780.0,104770.0,2.08282793]
[1748896729806,0.19212683,104780.0,104770.0,2.12942875]
[1748896729992,0.19212683,104780.0,104770.0,2.08284924]
[1748896731204,0.19212683,104780.0,104770.0,1.8773787]
[1748896731705,0.00134303,104780.0,104770.0,1.8773787]
[1748896732096,0.19192683,104780.0,104770.0,1.8773787]
[1748896732297,0.19212683,104780.0,104770.0,1.8773787]
[1748896732604,0.19212683,104780.0,104770.0,1.81821531]
[1748896733805,0.19212683,104780.0,104770.0,1.81813611]
[1748896735106,0.19212683,104780.0,104770.0,2.17893611]
[1748896735998,0.00134303,104780.0,104770.0,2.17893611]
[1748896737705,0.00134303,104780.0,104770.0,2.17891601]
[1748896738099,0.19212683,104780.0,104770.0,2.17891601]
[1748896738601,0.19212683,104780.0,104770.0,2.17879601]
[1748896740707,0.00134303,104780.0,104770.0,2.17879601]
[1748896741008,0.19212683,104780.0,104770.0,2.17872456]
[1748896741511,0.00134303,104780.0,104770.0,2.17872456]
[1748896741711,0.3498648,104790.0,104770.0,2.17872456]
[1748896741712,0.2881648,104790.0,104780.0,0.1907838]
[1748896741901,0.2881648,104790.0,104780.0,1.48671906]
[1748896742305,0.2883648,104790.0,104780.0,1.48671906]
[1748896743009,0.3053648,104790.0,104780.0,1.48871906]
[1748896744009,0.3053648,104790.0,104780.0,1.4422062]
[1748896744315,0.2576719,104790.0,104780.0,1.48870546]
[1748896744705,0.2576719,104790.0,104780.0,1.48869739]
[1748896745306,0.2099656,104790.0,104780.0,1.48869739]
[1748896745739,0.2099656,104790.0,104780.0,1.48707154]
[1748896745909,0.2099656,104790.0,104780.0,1.503564]
[1748896748011,0.2099656,104790.0,104780.0,1.54618251]
[1748896748615,0.2097656,104790.0,104780.0,1.54618251]
[1748896748816,0.2099656,104790.0,104780.0,1.54618251]
[1748896749019,0.2099656,104790.0,104780.0,1.50354399]
[1748896749518,0.0192,104790.0,104780.0,1.50354399]
[1748896750021,0.2099656,104790.0,104780.0,1.50354399]
[1748896751211,0.0192,104790.0,104780.0,1.50354399]
[1748896751515,0.2099656,104790.0,104780.0,1.50354399]
[1748896751724,0.2099656,104790.0,104780.0,1.50355696]
[1748896752109,0.2099656,104790.0,104780.0,1.86435696]
[1748896755012,0.0192,104790.0,104780.0,1.86435696]
[1748896755213,0.2099656,104790.0,104780.0,2.01059309]
[1748896755821,0.2099656,104790.0,104780.0,2.06970659]
[1748896756218,0.2099656,104790.0,104780.0,2.50794659]
[1748896756418,0.2424656,104790.0,104780.0,2.4488973]
[1748896757122,0.2424656,104790.0,104780.0,2.50796748]
[1748896757320,0.2744656,104790.0,104780.0,2.4488973]
[1748896758820,0.1154,104790.0,104780.0,2.4488973]
[1748896759431,0.0837,104790.0,104780.0,2.4488973]
[1748896759726,0.019,104790.0,104780.0,2.44898925]
[1748896760029,0.0192,104790.0,104780.0,2.44898925]
[1748896763622,0.2406656,104790.0,104780.0,2.44895979]
[1748896763821,0.1129,104790.0,104780.0,2.44895979]
[1748896764230,0.3036656,104790.0,104780.0,1.49782633]
[1748896764422,0.3036656,104790.0,104780.0,2.21163306]
[1748896764636,0.3036656,104790.0,104780.0,2.41691979]
[1748896764637,0.1129,104790.0,104780.0,2.41691979]
[1748896764827,0.3036656,104790.0,104780.0,2.41691979]
[1748896765131,0.3036656,104790.0,104780.0,2.32762235]
[1748896765325,0.3036656,104790.0,104780.0,2.15303562]
[1748896765630,0.3036656,104790.0,104780.0,2.35832235]
[1748896766321,0.3036656,104790.0,104780.0,2.40492187]
[1748896766525,0.1129,104790.0,104780.0,2.40492187]
[1748896767028,0.1129,104790.0,104780.0,2.44765276]
[1748896767531,0.1129,104790.0,104780.0,1.90713276]
[1748896767722,0.1129,104790.0,104780.0,2.44761276]
[1748896768431,0.3036656,104790.0,104780.0,2.44761276]
[1748896769231,0.3036656,104790.0,104780.0,2.31613678]
[1748896769619,0.1129,104790.0,104780.0,2.31613678]
[1748896770538,0.1129,104790.0,104780.0,2.26953726]
[1748896772336,0.1129,104790.0,104780.0,1.4207238]
[1748896772537,0.3036656,104790.0,104780.0,2.06413053]
[1748896772929,0.3036656,104790.0,104780.0,2.11075596]
[1748896773329,0.3036656,104790.0,104780.0,2.31604269]
[1748896773832,0.3036656,104790.0,104780.0,2.11075596]
[1748896774037,0.3036656,104790.0,104780.0,2.31604269]
[1748896774634,0.3036656,104790.0,104780.0,1.62601053]
[1748896774936,0.3036656,104790.0,104780.0,2.07619183]
[1748896775538,0.3036656,104790.0,104780.0,2.28147856]
[1748896777737,0.3036656,104790.0,104780.0,2.32812232]
[1748896778137,0.3036656,104790.0,104780.0,2.35842232]
[1748896779843,0.3036656,104790.0,104780.0,2.31177856]
[1748896780033,0.3036656,104790.0,104780.0,2.35842741]
[1748896781641,0.1129,104790.0,104780.0,2.35842741]
[1748896782945,0.1129,104790.0,104780.0,1.63682741]
[1748896783133,0.1129,104790.0,104780.0,2.35842741]
[1748896783333,0.1129,104790.0,104780.0,2.47676966]
[1748896783933,0.1129,104790.0,104780.0,2.43490538]
[1748896784733,0.1129,104790.0,104780.0,2.5273699]
[1748896784933,0.1129,104790.0,104780.0,2.61188166]
[1748896785235,0.3036656,104790.0,104780.0,2.61188166]
[1748896786742,0.3036656,104790.0,104780.0,2.56220405]
[1748896786931,0.1129,104790.0,104780.0,2.47769229]
[1748896787842,0.1129,104790.0,104780.0,2.38735951]
[1748896788044,0.1129,104790.0,104780.0,2.47750808]
[1748896789036,0.3036656,104790.0,104780.0,2.47750808]
[1748896790837,0.1129,104790.0,104780.0,2.47750808]
[1748896791844,0.1129,104790.0,104780.0,2.47750503]
[1748896792637,0.1129,104790.0,104780.0,1.93714503]
[1748896792843,0.3036656,104790.0,104780.0,2.47742503]
[1748896794739,0.3036656,104790.0,104780.0,2.03938503]
[1748896794941,0.3036656,104790.0,104780.0,2.47738503]
[1748896795739,0.3036656,104790.0,104780.0,2.47738211]
[1748896795936,0.3036656,104790.0,104780.0,1.75578211]
[1748896796441,0.3036656,104790.0,104780.0,2.47738211]
[1748896798350,0.3036656,104790.0,104780.0,1.75578211]
[1748896798552,0.3036656,104790.0,104780.0,2.47738211]
[1748896799543,0.1129,104790.0,104780.0,2.47738211]
[1748896799746,0.1129,104790.0,104780.0,2.47727296]
[1748896800946,0.3036656,104790.0,104780.0,2.47727296]
[1748896802055,0.3036656,104790.0,104780.0,2.43004089]
[1748896802247,0.1129,104790.0,104780.0,2.47731012]
[1748896804660,0.1129,104790.0,104780.0,2.61151294]
[1748896805858,0.1129,104790.0,104780.0,2.47175127]
[1748896806055,0.00014303,104800.0,104790.0,0.1907656]
[1748896806372,0.00034303,104800.0,104790.0,1.36713906]
[1748896806657,0.098,104810.0,104800.0,0.1907474]
[1748896806858,0.098,104810.0,104800.0,2.0983851]
[1748896807056,0.098,104810.0,104800.0,2.00959893]
[1748896807258,0.098,104810.0,104800.0,2.14559962]
[1748896807458,0.002,104820.0,104810.0,0.1907292]
[1748896807649,0.42182002,104850.0,104810.0,0.1907292]
[1748896807650,0.09334303,104830.0,104820.0,0.238387]
[1748896807847,0.00014303,104830.0,104820.0,2.27699163]
[1748896808062,1e-08,104830.0,104820.0,3.84937988]
[1748896808358,1e-08,104830.0,104820.0,3.78664291]
[1748896808561,0.00020001,104830.0,104820.0,3.78664291]
[1748896808858,0.0631,104840.0,104830.0,0.1906928]
[1748896809057,0.0631,104840.0,104830.0,1.23556836]
[1748896809363,0.0633,104840.0,104830.0,1.23537836]
[1748896809861,0.0633,104840.0,104830.0,1.32406981]
[1748896810260,0.0733,104840.0,104830.0,1.32506981]
[1748896810454,0.0733,104840.0,104830.0,1.23637836]
[1748896811263,0.0853,104840.0,104830.0,1.23737836]